bitfinex/quotes_ETHUSD_20241120
["timestamp","ask_amount","ask_price","bid_price","bid_amount"]
[1732105709621,3.23334,3092.8,3092.3,1.94029]
[1732105709974,4.00446,3093.1,3092.4,1.94023]
[1732105710174,3.23285,3093.3,3092.6,2.72057]
[1732105710409,0.8009,3093.7,3092.6,0.7805]
[1732105710570,0.55,3093.6,3092.7,1.94005]
[1732105710774,3.23265,3093.5,3092.8,1.93997]
[1732105710975,3.23265,3093.5,3092.7,1.94005]
[1732105710976,6.46568,3093.3,3092.7,1.94001]
[1732105711172,3.23281,3093.3,3092.7,1.94001]
[1732105711376,3.23281,3093.3,3092.8,1.93998]
[1732105711892,3.23281,3093.3,3092.7,1.94001]
[1732105712090,3.23281,3093.3,3092.7,2.212061]
[1732105712402,3.62568601,3093.8,3093.0,0.8154]
[1732105712403,3.23228,3093.8,3093.0,0.8154]
[1732105712587,3.23228,3093.8,3092.8,0.8154]
[1732105712787,3.23228,3093.8,3093.4,0.8154]
[1732105713720,3.2322,3093.9,3093.4,0.8154]
[1732105713889,3.23211,3094.0,3093.4,0.8154]
[1732105714096,3.23227,3093.8,3093.4,0.8154]
[1732105714294,3.23211,3094.0,3093.4,0.8154]
[1732105714295,3.23211,3094.0,3093.4,1.090906]
[1732105714499,3.23227,3093.8,3093.4,1.090906]
[1732105715091,3.23227,3093.8,3093.4,0.8154]
[1732105715597,3.23238,3093.7,3093.4,0.8154]
[1732105716574,3.23248,3093.6,3093.1,3.0]
[1732105716782,3.23248,3093.6,3093.2,0.8206]
[1732105716783,3.23255,3093.6,3093.2,0.8206]
[1732105717114,3.2326,3093.5,3093.2,0.8206]
[1732105717301,3.23269,3093.4,3093.2,0.8206]
[1732105717711,0.55,3093.6,3093.2,0.8206]
[1732105718019,3.23237,3093.7,3093.2,2.76031]
[1732105718205,3.2322,3093.9,3093.2,2.76031]
[1732105718411,6.46446,3093.9,3093.3,1.93966]
[1732105718609,3.23229,3093.8,3093.3,1.93966]
[1732105720050,6.16771643,3094.4,3093.4,1.93957]
[1732105720051,3.78217,3093.9,3093.4,1.93957]
[1732105720727,3.78213,3094.0,3093.4,1.93957]
[1732105721287,3.23213,3094.0,3093.6,0.8178]
[1732105721589,3.23196,3094.1,3093.6,2.75728]
[1732105722687,3.78188,3094.2,3093.7,1.93941]
[1732105722894,3.23198,3094.1,3093.6,0.8178]
[1732105723114,4.00334,3094.4,3093.6,0.8178]
[1732105723313,4.00334,3094.4,3093.8,1.93932]
[1732105723512,4.726834,3094.4,3093.8,1.93932]
[1732105723784,3.23175,3094.3,3093.8,1.93932]
[1732105724026,3.23175,3094.3,3093.6,2.75723]
[1732105724231,1.495094,3094.4,3093.6,0.8178]
[1732105724379,3.2318,3094.3,3093.7,1.93939]
[1732105724590,3.78184,3094.3,3093.6,0.8178]
[1732105724789,3.23191,3094.2,3093.6,2.75724]
[1732105725429,3.23201,3094.1,3093.6,2.75724]
[1732105725985,3.23191,3094.2,3093.6,0.8178]
[1732105726188,3.23237,3093.7,3092.9,1.93989]
[1732105726433,3.23262,3093.5,3093.0,2.71792]
[1732105727191,3.23243,3093.7,3093.0,2.71792]
[1732105727387,3.23243,3093.7,3093.0,4.65773]
[1732105727625,3.23248,3093.6,3093.0,2.71791]
[1732105727827,3.23273,3093.4,3093.0,0.7781]
[1732105728037,3.23273,3093.4,3093.0,3.7781]
[1732105728527,3.23264,3093.5,3093.0,3.7781]
[1732105729132,3.23264,3093.5,3093.0,5.71796]
[1732105729345,3.23264,3093.5,3093.0,6.483744]
[1732105730198,4.06293,3093.8,3093.0,4.543884]
[1732105730419,4.06293,3093.8,3093.2,1.93973]
[1732105730625,3.23243,3093.7,3093.1,3.87954]
[1732105730830,3.23243,3093.7,3093.1,1.93976]
[1732105731198,3.23243,3093.7,3093.3,0.8264]
[1732105731633,3.23224,3093.9,3093.3,2.76601]
[1732105731835,3.23224,3093.9,3093.3,4.70564]
[1732105732006,3.23224,3093.9,3093.3,2.76601]
[1732105732219,3.23227,3093.8,3093.3,2.76601]
[1732105733712,6.46461,3093.8,3093.3,2.76601]
[1732105733908,3.2324,3093.7,3093.3,0.8264]
[1732105734933,3.23227,3093.8,3093.3,0.8264]
[1732105735149,6.46464,3093.8,3093.3,0.8264]
[1732105735302,3.23227,3093.8,3093.3,0.8264]
[1732105735503,3.23239,3093.7,3093.3,0.8264]
[1732105735732,3.2325,3093.6,3093.3,0.8264]
[1732105735931,3.23264,3093.5,3093.1,0.7732]
[1732105736303,3.23271,3093.4,3093.1,0.7732]
[1732105736713,3.23254,3093.6,3093.1,0.7732]
[1732105736920,3.23265,3093.5,3093.1,0.7732]
[1732105737414,3.23254,3093.6,3093.1,0.7732]
[1732105737738,3.2326,3093.5,3093.1,0.7732]
[1732105738461,3.23247,3093.7,3093.1,2.71298]
[1732105738746,3.98875,3093.8,3093.1,2.71298]
[1732105738747,3.23251,3093.6,3093.1,2.984258]
[1732105739148,3.23251,3093.6,3093.1,1.044508]
[1732105739640,3.23265,3093.5,3093.1,1.044508]
[1732105739842,3.2327,3093.4,3093.1,1.044508]
[1732105740025,3.2327,3093.4,3093.1,0.7732]
[1732105740232,3.23252,3093.6,3093.1,0.7732]
[1732105740455,3.23264,3093.5,3093.1,0.7732]
[1732105740657,3.2327,3093.4,3093.1,0.7732]
[1732105740954,3.23279,3093.3,3093.1,0.7732]
[1732105741155,3.23279,3093.3,3092.2,2.03870128]
[1732105741156,3.23285,3093.3,3092.7,3.88005]
[1732105741451,3.9887,3093.8,3092.2,2.03870128]
[1732105741452,3.23265,3093.5,3093.0,0.7516]
[1732105741762,3.23269,3093.4,3093.0,1.214738]
[1732105741912,0.55,3093.8,3093.1,0.7767]
[1732105742122,3.23268,3093.4,3093.1,0.7767]
[1732105744556,3.23245,3093.7,3093.1,0.7767]
[1732105744868,3.23237,3093.7,3093.1,0.7767]
[1732105745155,3.23279,3093.3,3093.1,0.7767]
[1732105745512,3.23289,3093.2,3093.1,0.7767]
[1732105746061,3.23349,3092.7,3092.5,0.82]
[1732105746232,3.23325,3092.9,3092.5,0.82]
[1732105746436,3.23305,3093.1,3092.6,1.9401]
[1732105746623,3.23289,3093.2,3092.6,1.9401]
[1732105746819,3.23306,3093.1,3092.7,0.8105]
[1732105747769,3.23289,3093.2,3092.7,0.8105]
[1732105747770,3.23311,3093.0,3092.7,0.8105]
[1732105747917,3.23331,3092.8,3092.4,0.787]
[1732105748417,6.46669,3092.8,3092.4,0.787]
[1732105748632,3.23328,3092.9,3092.4,0.787]
[1732105748833,3.23337,3092.8,3092.4,0.787]
[1732105749230,3.23317,3093.0,3092.4,2.72721]
[1732105749627,3.23321,3092.9,3092.4,0.787]
[1732105749850,3.23332,3092.8,3092.4,0.787]
[1732105750112,3.23326,3092.9,3092.4,0.787]
[1732105750561,3.23326,3092.9,3092.4,2.72723]
[1732105750719,3.23326,3092.9,3092.5,1.94017]
[1732105751269,3.23293,3093.2,3092.7,1.94001]
[1732105751761,3.23293,3093.2,3092.6,0.7512]
[1732105751762,3.23318,3093.0,3092.6,0.7512]
[1732105751912,3.23318,3093.0,3092.6,2.69131]
[1732105752116,3.23294,3093.2,3092.7,1.94003]
[1732105752312,6.4659,3093.2,3092.7,1.94003]
[1732105752565,3.23294,3093.2,3092.7,1.94003]
[1732105752723,3.233,3093.1,3092.7,1.94003]
[1732105752917,3.23294,3093.2,3092.7,1.94003]
[1732105753119,6.46593,3093.2,3092.7,1.94003]
[1732105753455,3.23273,3093.4,3092.8,1.93998]
[1732105753849,3.23258,3093.5,3092.9,0.7512]
[1732105754023,3.23296,3093.2,3092.9,0.7512]
[1732105754728,3.23306,3093.1,3092.9,0.7512]
[1732105755137,3.23296,3093.2,3092.9,0.7512]
[1732105755769,3.23309,3093.1,3092.9,0.7512]
[1732105756831,3.2331,3093.0,3092.9,0.7512]
[1732105757161,3.23309,3093.1,3092.9,0.7512]
[1732105757363,3.2331,3093.0,3092.9,0.7512]
[1732105757671,3.23343,3092.7,3092.4,0.8173]
[1732105757874,3.23328,3092.9,3092.4,0.8173]
[1732105758078,3.23323,3092.9,3092.4,0.8173]
[1732105758381,3.23332,3092.8,3092.4,0.8173]
[1732105759538,4.03607,3093.1,3092.4,0.8173]
[1732105759539,3.23362,3092.5,3092.4,0.8173]
[1732105759981,3.23338,3092.8,3092.4,0.8173]
[1732105759982,3.23357,3092.6,3092.4,0.8173]
[1732105761189,3.2338,3092.4,3091.9,1.94049]
[1732105761350,6.46718,3092.6,3092.0,2.76029]
[1732105761539,3.23368,3092.5,3092.0,2.76029]
[1732105761743,3.23368,3092.5,3092.0,3.530368]
[1732105762576,3.23383,3092.3,3092.0,1.589878]
[1732105762784,3.23372,3092.5,3092.0,0.8198]
[1732105762948,3.23372,3092.5,3092.0,2.76025]
[1732105763149,3.23372,3092.5,3092.0,3.53033]
[1732105763561,3.23372,3092.5,3092.0,1.58988]
[1732105763861,3.23359,3092.6,3092.1,1.94039]
[1732105764583,3.23343,3092.7,3092.1,1.94038]
[1732105764884,3.23328,3092.9,3092.4,0.7673]
[1732105765380,3.23331,3092.8,3092.4,0.7673]
[1732105766588,3.23344,3092.7,3092.4,0.7673]
[1732105767420,3.23347,3092.7,3092.4,0.7673]
[1732105768712,3.23328,3092.9,3092.4,0.7673]
[1732105769257,3.23328,3092.9,3092.4,2.70751]
[1732105769758,3.23332,3092.8,3092.4,0.7673]
[1732105769923,3.23328,3092.9,3092.4,3.172315]
[1732105770130,3.23328,3092.9,3092.4,1.232095]
[1732105770340,3.23332,3092.8,3092.4,1.232095]
[1732105770844,3.23322,3092.9,3092.4,3.172315]
[1732105771153,3.23331,3092.8,3092.4,1.232095]
[1732105771704,0.8172,3092.7,3092.0,0.7987]
[1732105772445,3.23361,3092.6,3092.0,2.73915]
[1732105772677,3.23365,3092.5,3092.1,3.573915]
[1732105772857,0.8172,3092.7,3092.1,3.0]
[1732105773011,3.2337,3092.5,3092.1,3.0]
[1732105773352,0.8172,3092.7,3092.1,3.0]
[1732105773353,3.23352,3092.6,3092.1,3.0]
[1732105773503,3.23352,3092.6,3092.2,0.573915]
[1732105774357,3.2335,3092.7,3092.2,2.514225]
[1732105774705,6.46675,3092.8,3092.3,1.94029]
[1732105774954,6.46675,3092.8,3092.3,2.4917125]
[1732105775186,3.23337,3092.8,3092.3,2.4917125]
[1732105775353,3.23337,3092.8,3092.4,0.8283]
[1732105777733,6.46675,3092.8,3092.4,0.8283]
[1732105777933,3.23337,3092.8,3092.4,0.8283]
[1732105778672,1.35312752,3093.0,3092.4,0.8283]
[1732105778875,3.23349,3092.7,3092.4,0.8283]
[1732105779034,3.23358,3092.6,3092.4,0.8283]
[1732105779230,3.23349,3092.7,3092.4,0.8283]
[1732105780332,3.23327,3092.9,3092.4,0.8283]
[1732105780673,3.23331,3092.8,3092.4,0.8283]
[1732105782832,3.23362,3092.5,3092.4,0.8283]
[1732105783161,3.23362,3092.5,3092.2,0.7567]
[1732105783871,3.2338,3092.4,3092.2,0.7567]
[1732105784170,3.23362,3092.5,3092.2,0.7567]
[1732105784373,3.23331,3092.8,3092.2,0.7567]
[1732105784576,3.23331,3092.8,3092.3,0.34782792]
[1732105785537,3.23331,3092.8,3092.3,2.28806792]
[1732105785764,3.23344,3092.7,3092.3,2.28806792]
[1732105786773,3.23344,3092.7,3092.3,0.34782792]
[1732105787276,1.3444,3093.1,3092.3,0.34782792]
[1732105787277,3.23359,3092.6,3092.3,0.34782792]
[1732105787476,3.23359,3092.6,3092.2,0.7567]
[1732105787733,3.23369,3092.5,3092.2,0.7567]
[1732105788899,3.23374,3092.4,3092.2,0.7567]
[1732105789186,3.23383,3092.3,3092.2,0.7567]
[1732105789703,3.23383,3092.3,3091.8,3.0]
[1732105789843,0.8296,3092.6,3091.9,0.811]
[1732105789844,3.23406,3092.1,3091.9,0.811]
[1732105790243,3.23384,3092.3,3091.9,0.811]
[1732105790456,6.46777,3092.3,3091.9,0.811]
[1732105790749,3.23395,3092.2,3091.9,0.811]
[1732105791641,3.23385,3092.3,3091.9,0.811]
[1732105792181,3.23396,3092.2,3091.9,0.811]
[1732105792353,3.23385,3092.3,3091.9,0.811]
[1732105792696,3.23396,3092.2,3091.9,0.811]
[1732105793043,0.8296,3092.6,3091.9,0.811]
[1732105793256,3.23363,3092.5,3092.0,1.94045]
[1732105793465,3.23363,3092.5,3092.0,2.215595]
[1732105793790,3.23374,3092.4,3092.0,0.275145]
[1732105793991,3.23374,3092.4,3091.9,2.75155]
[1732105794487,3.23397,3092.2,3091.9,0.811]
[1732105794898,6.46797,3092.2,3091.9,0.811]
[1732105795187,3.23397,3092.2,3091.9,0.811]
[1732105795421,3.23405,3092.1,3091.9,0.811]
[1732105795581,3.23397,3092.2,3091.7,2.70067]
[1732105795782,3.23422,3092.0,3091.4,1.94081]
[1732105796004,3.23422,3092.0,3091.5,1.94077]
[1732105796214,3.23422,3092.0,3091.6,1.94074]
[1732105796737,1.35312752,3092.3,3091.3,0.7778]
[1732105797027,1.35312752,3091.7,3091.3,0.7778]
[1732105797178,3.23474,3091.5,3091.3,0.7778]
[1732105797373,4.58758752,3091.7,3091.3,0.7778]
[1732105797875,3.23464,3091.6,3091.3,0.7778]
[1732105798315,3.23473,3091.5,3091.3,0.7778]
[1732105798613,3.23473,3091.5,3091.0,0.7896]
[1732105798614,3.23491,3091.3,3091.0,0.7896]
[1732105799911,2.93470886,3091.7,3090.8,0.7896]
[1732105800110,3.23528,3091.0,3090.6,0.7764]
[1732105800336,3.23541,3090.8,3090.6,0.7764]
[1732105800530,3.23532,3090.9,3090.6,0.7764]
[1732105801646,3.23532,3090.9,3090.3,3.7775]
[1732105801647,3.23551,3090.7,3090.3,3.7775]
[1732105801864,3.23532,3090.9,3090.0,1.94172]
[1732105801865,3.23603,3090.2,3090.0,0.7696]
[1732105801998,3.23603,3090.2,3089.7,0.7696]
[1732105802548,3.23603,3090.2,3089.4,0.7931]
[1732105802549,3.99203,3090.2,3089.4,0.7931]
[1732105802698,6.92673886,3090.2,3089.4,0.7931]
[1732105803108,6.92673886,3090.2,3089.1,0.03222563]
[1732105803311,9.92673886,3090.2,3089.1,0.7539]
[1732105803547,3.23712,3089.2,3088.8,0.7539]
[1732105803753,3.23652,3089.8,3088.8,0.7539]
[1732105803754,3.23698,3089.3,3088.8,0.7539]
[1732105804147,3.23714,3089.2,3088.8,0.7539]
[1732105804457,3.23698,3089.3,3088.8,0.7539]
[1732105804611,3.23679,3089.5,3089.0,1.94236]
[1732105804807,3.23679,3089.5,3088.9,1.94238]
[1732105805237,3.23694,3089.4,3088.8,3.7539]
[1732105805459,2.93470886,3089.9,3089.3,0.7932]
[1732105805460,0.7961,3089.9,3089.3,0.7932]
[1732105805755,3.23616,3090.1,3089.4,1.94211]
[1732105805958,0.7961,3090.5,3089.6,1.94198]
[1732105806110,3.23582,3090.4,3089.6,1.94195]
[1732105806315,3.23617,3090.1,3089.3,0.7932]
[1732105806712,0.55,3090.0,3089.5,1.942]
[1732105806911,3.78627,3090.0,3089.4,1.94211]
[1732105807116,0.55,3090.0,3089.5,0.273531]
[1732105807354,0.55,3090.0,3089.7,1.94192]
[1732105807564,0.55,3090.0,3089.5,1.942]
[1732105807713,3.78625,3090.0,3089.6,0.1942]
[1732105807915,3.23593,3090.3,3089.7,1.94188]
[1732105808165,4.00437,3090.8,3089.8,0.7664]
[1732105808452,4.00401,3091.1,3090.4,1.94144]
[1732105808659,4.00401,3091.1,3090.5,0.7664]
[1732105808813,3.2353,3090.9,3090.5,0.7664]
[1732105809413,3.23552,3090.7,3090.5,0.7664]
[1732105809658,3.23552,3090.7,3090.2,0.8091]
[1732105809827,3.23567,3090.6,3090.2,0.8091]
[1732105810211,3.23583,3090.4,3090.2,0.8091]
[1732105810463,3.23583,3090.4,3089.9,0.8091]
[1732105810464,3.23589,3090.4,3089.9,0.8091]
[1732105810998,3.23589,3090.4,3089.9,3.8091]
[1732105811206,3.236,3090.3,3089.9,0.8091]
[1732105811394,0.55,3090.5,3089.9,0.8091]
[1732105811910,3.23584,3090.4,3089.9,3.8091]
[1732105812502,0.55,3090.5,3090.0,1.94171]
[1732105812711,3.23554,3090.7,3090.1,1.94162]
[1732105812914,0.55,3090.6,3090.1,1.94162]
[1732105813614,3.23575,3090.5,3089.9,2.75086]
[1732105813813,3.23601,3090.3,3089.9,0.8091]
[1732105814012,3.23642,3089.9,3089.4,3.7807]
[1732105814733,3.23612,3090.2,3089.4,3.7807]
[1732105814942,3.23625,3090.0,3089.4,2.72281]
[1732105815095,0.55,3090.1,3089.4,2.72281]
[1732105815285,0.55,3090.1,3089.5,1.94206]
[1732105815484,6.47257,3090.0,3089.4,2.72281]
[1732105815825,3.23624,3090.0,3089.4,2.72281]
[1732105816022,3.23624,3090.0,3089.4,0.7807]
[1732105816235,3.2365,3089.8,3089.2,3.0]
[1732105816523,0.8058,3089.9,3089.1,0.8098]
[1732105816524,3.23658,3089.7,3089.1,3.8098]
[1732105816686,3.23658,3089.7,3089.2,4.94223]
[1732105817117,4.59217,3089.9,3089.3,1.94217]
[1732105817311,1.3558,3089.9,3089.4,1.94206]
[1732105817528,0.55,3089.9,3089.2,3.0]
[1732105817686,3.23654,3089.8,3089.2,4.94224]
[1732105817888,3.23656,3089.7,3089.2,4.94224]
[1732105818101,0.55,3089.9,3089.2,4.94224]
[1732105818322,0.55,3089.9,3089.4,1.94209]
[1732105818490,0.55,3089.9,3089.2,2.517424]
[1732105818821,3.78636,3089.9,3089.2,4.94222]
[1732105819025,3.23573,3090.5,3089.7,0.7619]
[1732105819026,3.23612,3090.2,3089.7,0.7619]
[1732105819245,3.2362,3090.1,3089.7,0.7619]
[1732105819397,3.23597,3090.3,3089.7,0.7619]
[1732105819592,7.197372,3090.3,3089.7,0.7619]
[1732105819816,7.159972,3090.3,3089.7,0.7619]
[1732105820032,3.961352,3090.3,3089.7,0.7619]
[1732105820204,3.23614,3090.1,3089.7,0.7619]
[1732105820410,0.725372,3090.3,3089.8,1.94185]
[1732105820595,3.23593,3090.3,3089.7,0.7619]
[1732105820794,0.782,3090.5,3089.8,1.94183]
[1732105820795,4.01778,3090.5,3089.8,1.94183]
[1732105821120,3.23599,3090.3,3089.7,0.7619]
[1732105821318,3.23599,3090.3,3089.7,2.70382]
[1732105821519,1.183778,3090.5,3089.7,0.7619]
[1732105821520,3.23622,3090.1,3089.7,0.7619]
[1732105821723,3.23632,3090.0,3089.4,2.76726]
[1732105822107,3.23642,3089.9,3089.4,2.76726]
[1732105822311,4.04122,3089.9,3089.4,2.76726]
[1732105822623,0.8048,3089.9,3089.4,2.76726]
[1732105822823,4.04099,3090.1,3089.5,1.94204]
[1732105823041,2.93470886,3090.6,3089.6,1.94199]
[1732105823042,1.116774,3090.4,3089.6,1.94199]
[1732105823207,0.55,3090.2,3089.7,1.94188]
[1732105823398,3.78605,3090.2,3089.6,1.94199]
[1732105823600,3.23614,3090.1,3089.6,1.94199]
[1732105823793,0.55,3090.2,3089.8,1.94187]
[1732105824095,3.78595,3090.3,3089.8,1.94187]
[1732105824345,0.55,3090.3,3090.0,3.88343]
[1732105824640,4.04022,3090.6,3090.0,1.9417]
[1732105824844,3.23574,3090.5,3090.0,1.9417]
[1732105824996,0.8046,3090.6,3090.0,1.9417]
[1732105825203,3.23575,3090.5,3090.0,1.9417]
[1732105825524,3.23557,3090.7,3089.9,0.7579]
[1732105825723,3.23572,3090.5,3090.0,1.94173]
[1732105825927,0.55,3090.6,3090.0,0.464146]
[1732105826136,3.23541,3090.8,3090.3,1.94155]
[1732105826324,3.23541,3090.8,3090.3,2.135705]
[1732105826651,3.23541,3090.8,3090.3,1.94155]
[1732105826799,4.04,3090.9,3090.1,1.94163]
[1732105827000,0.8046,3090.9,3090.4,1.94144]
[1732105827201,4.03963,3091.2,3090.5,0.7579]
[1732105827404,4.03963,3091.2,3090.6,1.94133]
[1732105827824,0.8046,3091.2,3090.8,1.94123]
[1732105828031,3.2349,3091.3,3090.8,1.94123]
[1732105828200,3.2349,3091.3,3090.5,0.7579]
[1732105828201,3.23504,3091.2,3090.5,2.69929]
[1732105828545,3.23504,3091.2,3090.6,1.94133]
[1732105828743,3.23504,3091.2,3090.7,1.9413]
[1732105829452,3.23478,3091.4,3090.9,1.94116]
[1732105829453,0.55,3091.3,3090.9,1.94116]
[1732105829605,0.55,3091.3,3090.7,1.94127]
[1732105829807,0.55,3091.3,3091.2,1.94099]
[1732105830033,0.8067,3091.8,3091.0,1.94111]
[1732105830231,3.23467,3091.5,3090.8,2.75508]
[1732105830452,3.558137,3091.5,3090.8,2.75508]
[1732105830635,3.23467,3091.5,3091.0,1.94111]
[1732105831213,3.2345,3091.7,3091.0,1.94107]
[1732105831444,3.23457,3091.6,3091.0,1.94107]
[1732105831921,3.23457,3091.6,3091.1,1.94105]
[1732105832434,4.04106,3091.8,3091.2,1.94095]
[1732105832639,0.55,3091.7,3091.2,1.94095]
[1732105832863,0.55,3091.7,3091.5,0.7605]
[1732105833154,4.06548,3092.2,3091.5,2.70128]
[1732105833373,4.06548,3092.2,3091.7,1.94064]
[1732105833810,4.06548,3092.2,3091.6,1.94073]
[1732105834011,0.406548,3092.1,3091.6,1.94073]
[1732105834336,6.16848886,3092.4,3091.7,1.94067]
[1732105834337,3.23378,3092.4,3091.7,1.94067]
[1732105834506,3.23385,3092.3,3091.8,1.94061]
[1732105834707,0.55,3092.2,3091.7,1.94067]
[1732105834947,0.55,3092.2,3091.8,1.9406]
[1732105835248,0.55,3092.2,3092.0,0.7757]
[1732105835455,0.8151,3092.9,3092.0,0.7757]
[1732105835456,3.23374,3092.4,3092.0,0.7757]
[1732105835749,3.23374,3092.4,3091.8,1.94061]
[1732105835948,3.23383,3092.3,3091.8,1.94061]
[1732105836108,3.23394,3092.2,3091.6,5.71419]
[1732105836306,3.23374,3092.4,3091.9,1.94054]
[1732105836507,3.23374,3092.4,3091.6,0.7735]
[1732105836508,0.323374,3092.4,3091.7,1.94067]
[1732105836735,3.2337,3092.5,3091.9,1.94053]
[1732105837013,0.55,3092.4,3092.1,1.94038]
[1732105837353,3.23333,3092.8,3092.1,1.94038]
[1732105837654,6.46674,3092.8,3092.2,1.94035]
[1732105837882,0.404843,3092.7,3092.2,1.94035]
[1732105838347,0.404843,3092.7,3092.2,1.94033]
[1732105838846,0.404843,3092.7,3092.2,1.94032]
[1732105839013,0.404843,3092.7,3092.3,1.94028]
[1732105840143,3.23315,3093.0,3092.5,1.94013]
[1732105840311,3.78323,3092.9,3092.4,1.94024]
[1732105840552,0.701638,3092.8,3092.3,1.94024]
[1732105840977,0.55,3092.9,3092.0,0.7694]
[1732105841186,3.783,3093.1,3092.6,1.94007]
[1732105841551,3.783,3093.1,3092.4,1.9402]
[1732105841552,3.23291,3093.2,3092.7,1.94004]
[1732105841852,3.9963,3093.3,3092.7,1.94004]
[1732105841853,0.77793,3093.1,3092.7,1.94004]
[1732105842079,4.03888,3093.6,3092.9,1.93992]
[1732105842278,4.442768,3093.6,3093.0,1.93985]
[1732105842462,7.675338,3093.6,3093.0,1.93985]
[1732105842668,4.442818,3093.6,3092.7,0.7724]
[1732105842863,4.442818,3093.6,3092.9,1.93991]
[1732105842864,4.03893,3093.6,3092.9,1.93991]
[1732105843093,4.03893,3093.6,3092.7,2.71241]
[1732105843094,0.8064,3093.6,3092.7,2.71241]
[1732105843393,6.46464,3093.8,3093.1,1.93974]
[1732105843589,3.23243,3093.7,3093.2,0.7708]
[1732105844295,0.61668989,3093.8,3093.2,0.7708]
[1732105844496,3.84903989,3093.8,3093.2,2.71052]
[1732105844790,0.55,3093.7,3093.2,2.71052]
[1732105845391,0.55,3093.7,3093.2,2.71049]
[1732105845596,0.55,3093.7,3093.2,4.65018]
[1732105845890,0.55,3093.7,3093.3,1.93966]
[1732105846096,3.23235,3093.8,3093.3,1.93966]
[1732105846276,0.646446,3093.8,3093.3,1.93966]
[1732105846477,3.23211,3094.0,3093.2,2.71048]
[1732105846478,0.55,3093.9,3093.4,1.9396]
[1732105846652,0.55,3093.9,3093.2,2.71048]
[1732105846653,3.78218,3093.9,3093.2,2.71048]
[1732105846853,0.701429,3093.8,3093.2,0.7708]
[1732105847104,3.23234,3093.8,3093.2,0.7708]
[1732105847283,3.23251,3093.6,3093.2,0.7708]
[1732105847480,3.2324,3093.7,3093.2,0.7708]
[1732105847683,4.06575,3093.6,3092.9,3.7892]
[1732105847997,3.23286,3093.3,3092.9,0.7892]
[1732105848172,3.23276,3093.4,3092.9,0.7892]
[1732105848357,3.23291,3093.2,3092.9,0.7892]
[1732105848988,3.23276,3093.4,3092.9,0.7892]
[1732105849192,3.2328,3093.3,3092.9,0.7892]
[1732105849397,3.73877384,3093.4,3092.9,0.7892]
[1732105849553,3.73874384,3093.4,3092.9,0.7892]
[1732105849748,3.73874384,3093.4,3092.9,2.72907]
[1732105850384,3.73874384,3093.4,3092.9,0.7892]
[1732105850681,6.97151384,3093.4,3092.9,0.7892]
[1732105850856,3.93000138,3093.3,3092.9,0.7892]
[1732105851398,3.2329,3093.2,3092.9,0.7892]
[1732105851716,0.69715138,3093.3,3092.5,3.7593]
[1732105851717,3.23324,3092.9,3092.5,3.7593]
[1732105852231,3.23322,3092.9,3092.5,0.7593]
[1732105852677,3.23322,3092.9,3092.2,2.76273]
[1732105852879,3.23342,3092.7,3092.2,2.76273]
[1732105853708,3.23352,3092.6,3092.2,0.8224]
[1732105854817,6.46713,3092.6,3092.2,0.8224]
[1732105854971,3.23352,3092.6,3092.2,0.8224]
[1732105855500,3.9125402,3092.6,3092.2,0.8224]
[1732105857406,4.02803,3093.0,3092.2,0.8224]
[1732105857577,3.78323,3092.9,3092.3,1.94027]
[1732105857783,3.78323,3092.9,3092.3,3.88054]
[1732105857985,3.23313,3093.0,3092.4,1.9402]
[1732105858495,3.23323,3092.9,3092.4,1.94023]
[1732105859305,3.23312,3093.0,3092.3,1.94027]
[1732105859497,3.23312,3093.0,3092.5,1.94017]
[1732105859696,0.646603,3093.0,3092.6,1.94011]
[1732105859934,3.23303,3093.1,3092.5,1.94017]
[1732105860130,3.23291,3093.2,3092.5,1.94017]
[1732105860331,3.23322,3092.9,3092.3,3.88051]
[1732105860631,3.23311,3093.0,3092.2,0.8224]
[1732105860632,3.2331,3093.0,3092.2,0.8224]
[1732105860840,3.2331,3093.0,3092.2,2.7627]
[1732105860841,3.23338,3092.8,3092.2,2.7627]
[1732105861134,3.23338,3092.8,3092.3,1.94029]
[1732105861430,3.23316,3093.0,3092.5,1.94015]
[1732105861601,3.23316,3093.0,3092.6,0.7979]
[1732105862637,3.23321,3092.9,3092.6,0.7979]
[1732105863337,0.7645,3093.3,3092.6,2.73797]
[1732105863338,3.23302,3093.1,3092.6,2.73797]
[1732105863508,3.23302,3093.1,3092.6,0.7979]
[1732105863509,0.646584,3093.1,3092.6,0.7979]
[1732105863709,0.8125,3093.5,3092.6,2.73801]
[1732105864010,3.23316,3093.0,3092.6,0.7979]
[1732105864206,3.23326,3092.9,3092.6,0.7979]
[1732105864709,3.23321,3092.9,3092.6,0.7979]
[1732105865458,0.323316,3093.0,3092.6,0.7979]
[1732105865459,3.556496,3093.0,3092.6,0.7979]
[1732105865612,3.23321,3092.9,3092.6,0.7979]
[1732105866633,3.233,3093.1,3092.6,0.7979]
[1732105866634,3.233,3093.1,3092.6,2.738]
[1732105866833,3.2331,3093.0,3092.6,0.7979]
[1732105867190,3.23323,3092.9,3092.6,0.7979]
[1732105867394,3.23354,3092.6,3092.3,0.7676]
[1732105867639,3.23354,3092.6,3091.6,1.94072]
[1732105867640,3.23363,3092.5,3091.9,0.7676]
[1732105867845,3.23373,3092.4,3091.9,0.7676]
[1732105868325,3.78331,3092.8,3091.9,0.7676]